[Event "World Junior Chess Championship U20 2022"]
[White "Ballesteros Cardenas, Leonardo"]
[Black "Dimakis, Stavros"]
[WhiteFideId "3428141"]
[BlackFideId "25879472"]
[WhiteElo "2121"]
[BlackElo "1832"]
[Result "1-0"]
[Round "05"]
[TimeControl "5400+30"]
[Date "2022.10.15"]
[WhiteClock "0:05:50"]
[BlackClock "0:00:34"]

1. d4 {[%clk 1:30:44]}  d5 {[%clk 1:30:49]} 2. c4 {[%clk 1:30:57]}  e6 {[%clk 1:31:10]} 3. Nc3 {[%clk 1:30:38]}  c5 {[%clk 1:31:32]} 4. cxd5 {[%clk 1:29:51]}  cxd4 {[%clk 1:31:50]} 5. Qa4+ {[%clk 1:29:29]}  Bd7 {[%clk 1:32:07]} 6. Qxd4 {[%clk 1:29:49]}  exd5 {[%clk 1:32:21]} 7. Nf3 {[%clk 1:20:38]}  Nc6 {[%clk 1:23:35]} 8. Qd1 {[%clk 1:11:28]}  Bb4 {[%clk 1:21:26]} 9. e3 {[%clk 1:09:03]}  Nf6 {[%clk 1:18:55]} 10. a3 {[%clk 1:02:02]}  Bxc3+ {[%clk 1:16:36]} 11. bxc3 {[%clk 1:02:30]}  O-O {[%clk 1:16:49]} 12. Be2 {[%clk 0:59:59]}  Rc8 {[%clk 1:11:27]} 13. O-O {[%clk 0:58:05]}  Na5 {[%clk 1:08:14]} 14. Bb2 {[%clk 0:48:24]}  Bf5 {[%clk 1:05:50]} 15. Bd3 {[%clk 0:47:19]}  Bxd3 {[%clk 1:01:23]} 16. Qxd3 {[%clk 0:47:48]}  Nc4 {[%clk 1:01:43]} 17. Bc1 {[%clk 0:37:24]}  Qa5 {[%clk 0:57:54]} 18. Rd1 {[%clk 0:35:21]}  Ne4 {[%clk 0:54:13]} 19. h3 {[%clk 0:31:08]}  Nxc3 {[%clk 0:33:24]} 20. Bd2 {[%clk 0:29:30]}  Nb2 {[%clk 0:32:23]} 21. Bxc3 {[%clk 0:27:50]}  Rxc3 {[%clk 0:32:48]} 22. Qxd5 {[%clk 0:28:07]}  Rc5 {[%clk 0:33:08]} 23. Qxb7 {[%clk 0:26:20]}  Nxd1 {[%clk 0:33:20]} 24. Rxd1 {[%clk 0:26:47]}  Qxa3 {[%clk 0:30:55]} 25. Rd7 {[%clk 0:25:48]}  a5 {[%clk 0:28:26]} 26. Nd4 {[%clk 0:25:30]}  a4 {[%clk 0:27:22]} 27. Kh2 {[%clk 0:25:17]}  Qa2 {[%clk 0:25:59]} 28. Qb6 {[%clk 0:24:28]}  Rd5 {[%clk 0:24:19]} 29. Ra7 {[%clk 0:24:10]}  Rg5 {[%clk 0:19:15]} 30. Qc6 {[%clk 0:16:00]}  Qxf2 {[%clk 0:17:48]} 31. Qf3 {[%clk 0:14:43]}  Qa2 {[%clk 0:16:40]} 32. Nf5 {[%clk 0:14:23]}  g6 {[%clk 0:04:20]} 33. Nh6+ {[%clk 0:07:57]}  Kg7 {[%clk 0:04:44]} 34. Ng4 {[%clk 0:08:21]}  Rf5 {[%clk 0:02:38]} 35. Qc6 {[%clk 0:07:19]}  Qb2 {[%clk 0:01:20]} 36. e4 {[%clk 0:06:22]}  Qb8+ {[%clk 0:01:06]} 37. Rc7 {[%clk 0:05:55]}  Rf1 {[%clk 0:00:34]} 38. Qc3+ {[%clk 0:05:50]} 1-0


[Site "http://www.chessbomb.com"]

[Event "World Junior Chess Championship U20 2022"]
[White "Karsten, Jan"]
[Black "Gov, Guy"]
[WhiteFideId "14350653"]
[BlackFideId "2820200"]
[WhiteElo "1985"]
[BlackElo "2121"]
[Result "1/2-1/2"]
[Round "05"]
[TimeControl "5400+30"]
[Date "2022.10.15"]
[WhiteClock "0:06:41"]
[BlackClock "0:06:21"]

1. e4 {[%clk 1:30:57]}  e5 {[%clk 1:30:19]} 2. Nf3 {[%clk 1:31:21]}  Nc6 {[%clk 1:30:44]} 3. Bc4 {[%clk 1:31:47]}  Bc5 {[%clk 1:31:09]} 4. c3 {[%clk 1:32:13]}  Nf6 {[%clk 1:31:35]} 5. d3 {[%clk 1:32:39]}  d6 {[%clk 1:32:00]} 6. O-O {[%clk 1:32:49]}  a6 {[%clk 1:32:25]} 7. a4 {[%clk 1:32:49]}  Ba7 {[%clk 1:32:49]} 8. Re1 {[%clk 1:33:26]}  h6 {[%clk 1:33:14]} 9. Nbd2 {[%clk 1:33:28]}  g5 {[%clk 1:33:37]} 10. b4 {[%clk 1:33:41]}  Nh7 {[%clk 1:34:01]} 11. Kh1 {[%clk 1:18:02]}  O-O {[%clk 1:33:49]} 12. d4 {[%clk 1:10:57]}  g4 {[%clk 1:17:32]} 13. Ng1 {[%clk 1:08:38]}  exd4 {[%clk 1:12:34]} 14. cxd4 {[%clk 1:04:04]}  Bxd4 {[%clk 1:12:01]} 15. Ra3 {[%clk 1:02:02]}  Bxf2 {[%clk 1:07:05]} 16. Rf1 {[%clk 1:00:16]}  Bd4 {[%clk 1:07:32]} 17. Ne2 {[%clk 0:52:07]}  Bg7 {[%clk 1:07:55]} 18. Nf4 {[%clk 0:51:00]}  Ne5 {[%clk 1:05:58]} 19. Ba2 {[%clk 0:48:32]}  Nf6 {[%clk 1:01:52]} 20. Bb2 {[%clk 0:42:22]}  Kh7 {[%clk 1:01:50]} 21. Qa1 {[%clk 0:39:35]}  Qe7 {[%clk 0:51:20]} 22. Nc4 {[%clk 0:31:31]}  Re8 {[%clk 0:44:35]} 23. Nxe5 {[%clk 0:19:02]}  dxe5 {[%clk 0:44:58]} 24. Nd3 {[%clk 0:19:24]}  Be6 {[%clk 0:36:47]} 25. Bxe5 {[%clk 0:18:03]}  Nh5 {[%clk 0:35:56]} 26. Bxg7 {[%clk 0:16:16]}  Nxg7 {[%clk 0:36:20]} 27. Bb1 {[%clk 0:16:22]}  Qg5 {[%clk 0:28:46]} 28. Qc3 {[%clk 0:13:47]}  Nh5 {[%clk 0:21:27]} 29. Nc5 {[%clk 0:12:35]}  Kg8 {[%clk 0:20:36]} 30. Nxe6 {[%clk 0:09:40]}  Rxe6 {[%clk 0:20:18]} 31. Qxc7 {[%clk 0:09:34]}  Rf6 {[%clk 0:20:31]} 32. Rxf6 {[%clk 0:08:52]}  Qxf6 {[%clk 0:20:57]} 33. Qc1 {[%clk 0:08:40]}  Rd8 {[%clk 0:13:07]} 34. Rd3 {[%clk 0:08:19]}  Nf4 {[%clk 0:13:22]} 35. Rxd8+ {[%clk 0:07:26]}  Qxd8 {[%clk 0:13:50]} 36. Bc2 {[%clk 0:04:53]}  Qf6 {[%clk 0:08:45]} 37. Qd1 {[%clk 0:03:53]}  h5 {[%clk 0:07:31]} 38. b5 {[%clk 0:03:19]}  axb5 {[%clk 0:06:58]} 39. axb5 {[%clk 0:03:42]}  Qb2 {[%clk 0:06:22]} 40. Qb1 {[%clk 0:03:35]}  Qd4 {[%clk 0:02:00]} 41. Qf1 {[%clk 0:25:18]}  Qe3 {[%clk 0:25:29]} 42. Bb1 {[%clk 0:23:33]}  Qd2 {[%clk 0:21:03]} 43. e5 {[%clk 0:13:43]}  Qe3 {[%clk 0:21:06]} 44. Ba2 {[%clk 0:09:58]}  Qxe5 {[%clk 0:20:15]} 45. Bc4 {[%clk 0:09:44]}  Qe4 {[%clk 0:19:51]} 46. Kg1 {[%clk 0:09:18]}  Qd4+ {[%clk 0:16:12]} 47. Kh1 {[%clk 0:09:38]}  h4 {[%clk 0:14:21]} 48. Qc1 {[%clk 0:09:45]}  Kg7 {[%clk 0:08:38]} 49. Bf1 {[%clk 0:09:54]}  Qe4 {[%clk 0:07:09]} 50. Qc3+ {[%clk 0:09:37]}  Kh7 {[%clk 0:07:30]} 51. Qf6 {[%clk 0:09:10]}  h3 {[%clk 0:06:47]} 52. Qxf7+ {[%clk 0:07:36]}  Kh6 {[%clk 0:07:16]} 53. Qf6+ {[%clk 0:07:11]}  Ng6 {[%clk 0:07:26]} 54. Qf2 {[%clk 0:06:55]}  Kg5 {[%clk 0:06:21]} 55. Kg1 {[%clk 0:06:41]} 1/2-1/2


[Site "http://www.chessbomb.com"]

[Event "World Junior Chess Championship U20 2022"]
[White "Carroll, Peter"]
[Black "van der Merwe, Alexander"]
[WhiteFideId "2510243"]
[BlackFideId "14323842"]
[WhiteElo "2115"]
[BlackElo "1746"]
[Result "0-1"]
[Round "05"]
[TimeControl "5400+30"]
[Date "2022.10.15"]
[WhiteClock "0:01:39"]
[BlackClock "0:03:52"]

1. e4 {[%clk 1:30:44]}  c5 {[%clk 1:30:44]} 2. Nf3 {[%clk 1:31:07]}  d6 {[%clk 1:31:06]} 3. d4 {[%clk 1:31:33]}  cxd4 {[%clk 1:31:32]} 4. Nxd4 {[%clk 1:31:58]}  Nf6 {[%clk 1:31:57]} 5. Nc3 {[%clk 1:32:23]}  a6 {[%clk 1:32:23]} 6. h4 {[%clk 1:32:32]}  e5 {[%clk 1:32:00]} 7. Nb3 {[%clk 1:32:59]}  Be6 {[%clk 1:31:15]} 8. f4 {[%clk 1:33:27]}  exf4 {[%clk 1:18:23]} 9. Bxf4 {[%clk 1:31:47]}  Nc6 {[%clk 1:17:52]} 10. Qd2 {[%clk 1:32:13]}  Be7 {[%clk 1:09:15]} 11. O-O-O {[%clk 1:32:19]}  b5 {[%clk 1:04:06]} 12. Nd5 {[%clk 1:20:03]}  Ne5 {[%clk 0:53:39]} 13. Bxe5 {[%clk 1:07:57]}  dxe5 {[%clk 0:53:51]} 14. Qc3 {[%clk 1:07:59]}  Bxd5 {[%clk 0:47:17]} 15. exd5 {[%clk 0:58:59]}  Qd6 {[%clk 0:45:42]} 16. Qf3 {[%clk 0:54:04]}  O-O {[%clk 0:42:55]} 17. g4 {[%clk 0:54:06]}  e4 {[%clk 0:39:44]} 18. Qf5 {[%clk 0:42:18]}  g6 {[%clk 0:37:58]} 19. Qg5 {[%clk 0:40:55]}  Rfd8 {[%clk 0:35:57]} 20. Bg2 {[%clk 0:30:35]}  Nxd5 {[%clk 0:25:46]} 21. Qd2 {[%clk 0:28:10]}  Qe5 {[%clk 0:23:51]} 22. Qe2 {[%clk 0:26:19]}  Bf6 {[%clk 0:17:37]} 23. c3 {[%clk 0:26:15]}  Re8 {[%clk 0:10:40]} 24. g5 {[%clk 0:23:06]}  Bg7 {[%clk 0:10:55]} 25. Rhe1 {[%clk 0:20:43]}  f5 {[%clk 0:05:31]} 26. gxf6 {[%clk 0:20:33]}  Nxf6 {[%clk 0:05:59]} 27. Kb1 {[%clk 0:16:52]}  Rad8 {[%clk 0:05:45]} 28. Rxd8 {[%clk 0:16:55]}  Rxd8 {[%clk 0:06:11]} 29. Nd4 {[%clk 0:17:18]}  Re8 {[%clk 0:05:57]} 30. a4 {[%clk 0:17:20]}  bxa4 {[%clk 0:03:40]} 31. Qxa6 {[%clk 0:12:53]}  Qg3 {[%clk 0:04:01]} 32. Re2 {[%clk 0:13:04]}  h5 {[%clk 0:02:17]} 33. Qxa4 {[%clk 0:13:02]}  Kh7 {[%clk 0:01:35]} 34. Qc6 {[%clk 0:11:43]}  Qd3+ {[%clk 0:01:29]} 35. Ka2 {[%clk 0:11:34]}  Re7 {[%clk 0:01:27]} 36. Qc5 {[%clk 0:10:22]}  Qa6+ {[%clk 0:01:32]} 37. Kb1 {[%clk 0:08:27]}  Ra7 {[%clk 0:01:01]} 38. Qb5 {[%clk 0:06:15]}  Qa1+ {[%clk 0:01:32]} 39. Kc2 {[%clk 0:06:45]}  Re7 {[%clk 0:00:53]} 40. Qb4 {[%clk 0:01:10]}  Re8 {[%clk 0:00:40]} 41. Nb3 {[%clk 0:24:17]}  Qa6 {[%clk 0:28:43]} 42. Nc1 {[%clk 0:20:45]}  Qe6 {[%clk 0:24:38]} 43. Qc5 {[%clk 0:15:17]}  Qg4 {[%clk 0:22:36]} 44. Qg5 {[%clk 0:15:34]}  Qe6 {[%clk 0:20:36]} 45. Qg3 {[%clk 0:15:29]}  Bh6 {[%clk 0:18:31]} 46. Bh3 {[%clk 0:14:40]}  Qb6 {[%clk 0:15:51]} 47. Qf2 {[%clk 0:12:34]}  Qa6 {[%clk 0:14:38]} 48. Re1 {[%clk 0:09:00]}  Rd8 {[%clk 0:13:09]} 49. Rd1 {[%clk 0:06:28]}  Rb8 {[%clk 0:07:14]} 50. Nb3 {[%clk 0:01:01]}  e3 {[%clk 0:04:05]} 51. Qh2 {[%clk 0:01:30]}  Qb7 {[%clk 0:03:08]} 52. Be6 {[%clk 0:01:15]}  Qe4+ {[%clk 0:03:18]} 53. Rd3 {[%clk 0:01:39]}  Bf4 {[%clk 0:03:10]} 54. Nc5 {[%clk 0:01:21]}  Qxd3+ {[%clk 0:03:27]} 55. Kxd3 {[%clk 0:01:39]}  Bxh2 {[%clk 0:03:52]} 56. Kd4 {[%clk 0:01:39]} 0-1


[Site "http://www.chessbomb.com"]

[Event "World Junior Chess Championship U20 2022"]
[White "Liloni, Francesco Mattia"]
[Black "Tripodi, Enzo"]
[WhiteFideId "2872264"]
[BlackFideId "2822674"]
[WhiteElo "1876"]
[BlackElo "2113"]
[Result "1-0"]
[Round "05"]
[TimeControl "5400+30"]
[Date "2022.10.15"]
[WhiteClock "0:33:12"]
[BlackClock "0:06:34"]

1. e4 {[%clk 1:30:57]}  e6 {[%clk 1:28:47]} 2. Nf3 {[%clk 1:30:23]}  d5 {[%clk 1:28:47]} 3. Nc3 {[%clk 1:30:49]}  dxe4 {[%clk 1:28:21]} 4. Nxe4 {[%clk 1:31:10]}  Be7 {[%clk 1:28:28]} 5. d4 {[%clk 1:31:30]}  Nf6 {[%clk 1:28:49]} 6. Bd3 {[%clk 1:31:25]}  Nbd7 {[%clk 1:25:28]} 7. Nxf6+ {[%clk 1:27:25]}  Nxf6 {[%clk 1:24:12]} 8. c3 {[%clk 1:24:07]}  O-O {[%clk 1:24:27]} 9. h4 {[%clk 1:24:03]}  b6 {[%clk 1:21:01]} 10. g4 {[%clk 1:21:58]}  Bb7 {[%clk 1:17:17]} 11. Rh3 {[%clk 1:21:09]}  c5 {[%clk 1:02:16]} 12. Ne5 {[%clk 1:13:17]}  cxd4 {[%clk 0:47:48]} 13. g5 {[%clk 1:13:27]}  Qd5 {[%clk 0:47:52]} 14. cxd4 {[%clk 1:13:50]}  Ne4 {[%clk 0:44:49]} 15. Be3 {[%clk 1:07:09]}  Bb4+ {[%clk 0:42:00]} 16. Ke2 {[%clk 1:04:40]}  Rac8 {[%clk 0:37:11]} 17. f3 {[%clk 0:59:56]}  Nc5 {[%clk 0:25:12]} 18. Bc4 {[%clk 1:00:21]}  Ba6 {[%clk 0:25:34]} 19. b3 {[%clk 0:58:41]}  Na4 {[%clk 0:24:17]} 20. Kf2 {[%clk 0:55:25]}  Nb2 {[%clk 0:23:11]} 21. Qb1 {[%clk 0:53:04]}  Bxc4 {[%clk 0:17:05]} 22. bxc4 {[%clk 0:52:26]}  Nxc4 {[%clk 0:17:24]} 23. Qxb4 {[%clk 0:52:02]}  Nxe5 {[%clk 0:17:52]} 24. dxe5 {[%clk 0:51:32]}  Rc2+ {[%clk 0:18:19]} 25. Kg1 {[%clk 0:50:32]}  Rd8 {[%clk 0:16:16]} 26. Re1 {[%clk 0:44:05]}  Qxe5 {[%clk 0:15:06]} 27. h5 {[%clk 0:40:00]}  Rb2 {[%clk 0:11:52]} 28. Bf4 {[%clk 0:35:19]}  Rxb4 {[%clk 0:08:12]} 29. Bxe5 {[%clk 0:32:14]}  a5 {[%clk 0:08:09]} 30. Rh2 {[%clk 0:31:39]}  a4 {[%clk 0:08:07]} 31. Rc2 {[%clk 0:31:48]}  Rh4 {[%clk 0:07:44]} 32. h6 {[%clk 0:31:17]}  Rh5 {[%clk 0:07:09]} 33. f4 {[%clk 0:30:52]}  gxh6 {[%clk 0:07:19]} 34. Bf6 {[%clk 0:31:16]}  Rb8 {[%clk 0:07:14]} 35. Rec1 {[%clk 0:31:38]}  Re8 {[%clk 0:05:37]} 36. Rc8 {[%clk 0:32:03]}  Kf8 {[%clk 0:06:02]} 37. Rxe8+ {[%clk 0:32:27]}  Kxe8 {[%clk 0:06:29]} 38. Rd1 {[%clk 0:32:50]}  Rxg5+ {[%clk 0:06:34]} 39. fxg5 {[%clk 0:33:12]} 1-0


[Site "http://www.chessbomb.com"]

[Event "World Junior Chess Championship U20 2022"]
[White "Porcu, Riccardo"]
[Black "Javornik, Nik"]
[WhiteFideId "28536690"]
[BlackFideId "14636549"]
[WhiteElo "1759"]
[BlackElo "2064"]
[Result "0-1"]
[Round "05"]
[TimeControl "5400+30"]
[Date "2022.10.15"]
[WhiteClock "0:09:19"]
[BlackClock "0:41:37"]

1. d4 {[%clk 1:30:53]}  Nf6 {[%clk 1:30:53]} 2. c4 {[%clk 1:30:53]}  g6 {[%clk 1:31:17]} 3. Nc3 {[%clk 1:31:21]}  Bg7 {[%clk 1:31:26]} 4. e4 {[%clk 1:31:35]}  d6 {[%clk 1:31:52]} 5. Be2 {[%clk 1:31:32]}  O-O {[%clk 1:32:16]} 6. Be3 {[%clk 1:31:32]}  a5 {[%clk 1:32:00]} 7. g4 {[%clk 1:32:19]}  a4 {[%clk 1:32:07]} 8. g5 {[%clk 1:25:29]}  Ne8 {[%clk 1:32:36]} 9. Nxa4 {[%clk 1:12:17]}  c5 {[%clk 1:32:42]} 10. Nc3 {[%clk 1:10:04]}  cxd4 {[%clk 1:32:53]} 11. Bxd4 {[%clk 1:10:25]}  f5 {[%clk 1:33:22]} 12. Bxg7 {[%clk 1:02:49]}  Nxg7 {[%clk 1:33:46]} 13. e5 {[%clk 0:53:48]}  dxe5 {[%clk 1:30:51]} 14. Qxd8 {[%clk 0:54:11]}  Rxd8 {[%clk 1:31:18]} 15. Nd5 {[%clk 0:52:30]}  Nc6 {[%clk 1:29:31]} 16. O-O-O {[%clk 0:49:56]}  Ne6 {[%clk 1:12:50]} 17. Nb6 {[%clk 0:43:45]}  Rxd1+ {[%clk 1:13:03]} 18. Kxd1 {[%clk 0:41:09]}  Rb8 {[%clk 1:13:24]} 19. h4 {[%clk 0:39:36]}  Bd7 {[%clk 1:03:23]} 20. Nxd7 {[%clk 0:33:43]}  Rd8 {[%clk 1:03:48]} 21. Bf1 {[%clk 0:32:03]}  Rxd7+ {[%clk 1:03:07]} 22. Kc1 {[%clk 0:32:12]}  Kf7 {[%clk 0:59:40]} 23. Ne2 {[%clk 0:31:17]}  Nb4 {[%clk 0:57:59]} 24. Nc3 {[%clk 0:31:12]}  Nf4 {[%clk 0:57:35]} 25. Rh2 {[%clk 0:24:52]}  e4 {[%clk 0:57:11]} 26. a3 {[%clk 0:22:09]}  Nc6 {[%clk 0:51:36]} 27. Nd5 {[%clk 0:19:49]}  Nxd5 {[%clk 0:51:29]} 28. cxd5 {[%clk 0:20:18]}  Ne5 {[%clk 0:51:50]} 29. Be2 {[%clk 0:19:41]}  Rxd5 {[%clk 0:50:00]} 30. Rh3 {[%clk 0:18:14]}  f4 {[%clk 0:48:51]} 31. Rb3 {[%clk 0:16:56]}  Rd7 {[%clk 0:39:25]} 32. Rb4 {[%clk 0:16:04]}  Nd3+ {[%clk 0:39:25]} 33. Bxd3 {[%clk 0:16:26]}  Rxd3 {[%clk 0:39:50]} 34. Rxb7 {[%clk 0:10:24]}  e3 {[%clk 0:39:08]} 35. Rb4 {[%clk 0:10:24]}  e2 {[%clk 0:39:34]} 36. Rxf4+ {[%clk 0:09:26]}  Ke8 {[%clk 0:40:00]} 37. Re4 {[%clk 0:08:28]}  Rd1+ {[%clk 0:40:24]} 38. Kc2 {[%clk 0:08:58]}  e1=Q {[%clk 0:40:46]} 39. Rxe1 {[%clk 0:09:04]}  Rxe1 {[%clk 0:41:14]} 40. b4 {[%clk 0:09:19]}  Kd7 {[%clk 0:41:37]} 0-1


[Site "http://www.chessbomb.com"]

[Event "World Junior Chess Championship U20 2022"]
[White "Monferrato, Rocco"]
[Black "Vivoli, Alessandro"]
[WhiteFideId "3016536"]
[BlackFideId "11800240"]
[WhiteElo "1563"]
[BlackElo "1555"]
[Result "1-0"]
[Round "05"]
[TimeControl "5400+30"]
[Date "2022.10.15"]
[WhiteClock "0:14:45"]
[BlackClock "0:06:41"]

1. e4 {[%clk 1:30:58]}  e5 {[%clk 1:30:55]} 2. Nf3 {[%clk 1:31:23]}  Nc6 {[%clk 1:31:20]} 3. c3 {[%clk 1:31:46]}  Nf6 {[%clk 1:30:48]} 4. d4 {[%clk 1:32:06]}  exd4 {[%clk 1:29:10]} 5. e5 {[%clk 1:32:12]}  Nd5 {[%clk 1:26:40]} 6. cxd4 {[%clk 1:32:31]}  Bb4+ {[%clk 1:25:04]} 7. Bd2 {[%clk 1:32:52]}  Bxd2+ {[%clk 1:25:01]} 8. Nbxd2 {[%clk 1:33:14]}  O-O {[%clk 1:25:06]} 9. Bc4 {[%clk 1:31:43]}  Nb6 {[%clk 1:24:15]} 10. Bb3 {[%clk 1:31:53]}  d5 {[%clk 1:21:38]} 11. O-O {[%clk 1:29:38]}  Bg4 {[%clk 1:20:20]} 12. Qc2 {[%clk 1:26:27]}  Na5 {[%clk 1:15:54]} 13. Rfc1 {[%clk 1:20:20]}  Nxb3 {[%clk 1:12:53]} 14. axb3 {[%clk 1:18:39]}  c6 {[%clk 1:10:18]} 15. b4 {[%clk 1:17:09]}  h6 {[%clk 1:00:34]} 16. b5 {[%clk 1:14:20]}  cxb5 {[%clk 0:54:28]} 17. Qd3 {[%clk 1:11:53]}  a6 {[%clk 0:49:58]} 18. Nb3 {[%clk 1:09:45]}  Nc4 {[%clk 0:47:25]} 19. Qc3 {[%clk 1:05:03]}  Bxf3 {[%clk 0:45:53]} 20. gxf3 {[%clk 1:05:04]}  b6 {[%clk 0:44:22]} 21. Rc2 {[%clk 1:03:27]}  Re8 {[%clk 0:39:01]} 22. Nc1 {[%clk 1:02:10]}  Re6 {[%clk 0:36:17]} 23. b3 {[%clk 0:58:22]}  Rg6+ {[%clk 0:36:20]} 24. Kf1 {[%clk 0:58:20]}  Na5 {[%clk 0:35:20]} 25. Nd3 {[%clk 0:52:36]}  Rc6 {[%clk 0:33:42]} 26. Qb2 {[%clk 0:50:49]}  Rac8 {[%clk 0:26:55]} 27. Rxc6 {[%clk 0:50:47]}  Rxc6 {[%clk 0:26:52]} 28. Nb4 {[%clk 0:47:14]}  Rg6 {[%clk 0:24:09]} 29. Nxa6 {[%clk 0:41:36]}  Qc8 {[%clk 0:23:18]} 30. Nb4 {[%clk 0:35:58]}  Qh3+ {[%clk 0:22:39]} 31. Ke2 {[%clk 0:36:05]}  Qd7 {[%clk 0:18:59]} 32. Qc2 {[%clk 0:26:05]}  Rg2 {[%clk 0:14:11]} 33. Rh1 {[%clk 0:23:35]}  Kf8 {[%clk 0:10:41]} 34. Qd3 {[%clk 0:21:35]}  Ke7 {[%clk 0:08:20]} 35. f4 {[%clk 0:19:07]}  Qg4+ {[%clk 0:06:31]} 36. Qf3 {[%clk 0:18:25]}  Nxb3 {[%clk 0:02:38]} 37. Qxg4 {[%clk 0:15:52]}  Rxg4 {[%clk 0:02:37]} 38. Kf3 {[%clk 0:15:46]}  Rg6 {[%clk 0:01:35]} 39. Nxd5+ {[%clk 0:15:00]}  Ke6 {[%clk 0:00:36]} 40. f5+ {[%clk 0:13:00]}  Kxf5 {[%clk 0:00:45]} 41. Ne7+ {[%clk 0:13:20]}  Ke6 {[%clk 0:00:39]} 42. Nxg6 {[%clk 0:13:01]}  fxg6 {[%clk 0:00:40]} 43. Ke3 {[%clk 0:11:38]}  Kd5 {[%clk 0:00:32]} 44. Kd3 {[%clk 0:11:30]}  Nxd4 {[%clk 0:30:02]} 45. Rd1 {[%clk 0:36:23]}  Kxe5 {[%clk 0:28:16]} 46. f4+ {[%clk 0:36:14]}  Kxf4 {[%clk 0:27:09]} 47. Kxd4 {[%clk 0:36:29]}  g5 {[%clk 0:24:09]} 48. Rf1+ {[%clk 0:33:44]}  Kg4 {[%clk 0:24:30]} 49. Rf7 {[%clk 0:34:04]}  g6 {[%clk 0:16:59]} 50. Rf6 {[%clk 0:33:23]}  Kh3 {[%clk 0:13:15]} 51. Rxg6 {[%clk 0:33:02]}  Kxh2 {[%clk 0:12:45]} 52. Rxh6+ {[%clk 0:32:30]}  Kg3 {[%clk 0:13:09]} 53. Rxb6 {[%clk 0:31:35]}  Kf3 {[%clk 0:11:33]} 54. Rf6+ {[%clk 0:30:06]}  Kg3 {[%clk 0:10:55]} 55. Rf5 {[%clk 0:24:03]}  g4 {[%clk 0:09:54]} 56. Ke3 {[%clk 0:21:00]}  b4 {[%clk 0:07:07]} 57. Rb5 {[%clk 0:15:32]}  Kh2 {[%clk 0:05:45]} 58. Rxb4 {[%clk 0:15:32]}  g3 {[%clk 0:06:02]} 59. Rh4+ {[%clk 0:14:53]}  Kg1 {[%clk 0:06:01]} 60. Kf3 {[%clk 0:14:46]}  g2 {[%clk 0:06:20]} 61. Rg4 {[%clk 0:14:52]}  Kh1 {[%clk 0:06:41]} 62. Ke4 {[%clk 0:14:45]} 1-0


[Site "http://www.chessbomb.com"]

[Event "World Junior Chess Championship U20 2022"]
[White "Abdulla, Younes Alkhemeiri"]
[Black "Ahmed, Younes Alkhemeiri"]
[WhiteFideId "9324577"]
[BlackFideId "9324585"]
[WhiteElo "1405"]
[BlackElo "1139"]
[Result "1-0"]
[Round "05"]
[TimeControl "5400+30"]
[Date "2022.10.15"]
[WhiteClock "1:02:14"]
[BlackClock "0:24:08"]

1. c4 {[%clk 0:00:00]}  e6 {[%clk 0:00:00]} 2. g3 {[%clk 1:31:14]}  Nf6 {[%clk 1:29:31]} 3. Bg2 {[%clk 1:31:07]}  d5 {[%clk 1:29:00]} 4. Nf3 {[%clk 1:31:15]}  Bd6 {[%clk 1:28:42]} 5. d4 {[%clk 1:31:17]}  b6 {[%clk 1:28:23]} 6. cxd5 {[%clk 1:29:51]}  exd5 {[%clk 1:28:10]} 7. Nc3 {[%clk 1:29:48]}  Bb7 {[%clk 1:28:00]} 8. Bg5 {[%clk 1:29:24]}  O-O {[%clk 1:27:47]} 9. Nd2 {[%clk 1:29:24]}  c6 {[%clk 1:27:03]} 10. e4 {[%clk 1:28:16]}  dxe4 {[%clk 1:23:15]} 11. Ndxe4 {[%clk 1:28:22]}  Be7 {[%clk 1:23:28]} 12. Nxf6+ {[%clk 1:24:59]}  Bxf6 {[%clk 1:23:49]} 13. Bxf6 {[%clk 1:25:04]}  Qxf6 {[%clk 1:23:51]} 14. O-O {[%clk 1:24:46]}  Rd8 {[%clk 1:18:46]} 15. Ne2 {[%clk 1:25:05]}  Ba6 {[%clk 1:17:39]} 16. Re1 {[%clk 1:24:23]}  Bxe2 {[%clk 1:17:07]} 17. Rxe2 {[%clk 1:24:45]}  h6 {[%clk 1:17:02]} 18. Rd2 {[%clk 1:24:59]}  Nd7 {[%clk 1:12:05]} 19. Qa4 {[%clk 1:24:54]}  b5 {[%clk 1:11:22]} 20. Qd1 {[%clk 1:23:29]}  Rac8 {[%clk 1:08:58]} 21. Rc1 {[%clk 1:23:24]}  Nb6 {[%clk 1:08:26]} 22. b3 {[%clk 1:22:43]}  Nd5 {[%clk 1:01:05]} 23. Rc5 {[%clk 1:21:13]}  Nb4 {[%clk 0:56:59]} 24. a3 {[%clk 1:20:53]}  Na6 {[%clk 0:57:19]} 25. Rc3 {[%clk 1:20:30]}  b4 {[%clk 0:51:43]} 26. axb4 {[%clk 1:20:16]}  Nxb4 {[%clk 0:50:13]} 27. Rc4 {[%clk 1:19:39]}  Nd5 {[%clk 0:45:31]} 28. Qa1 {[%clk 1:18:43]}  Rc7 {[%clk 0:44:37]} 29. Qa5 {[%clk 1:18:25]}  Qe7 {[%clk 0:43:14]} 30. Rdc2 {[%clk 1:17:35]}  Nb6 {[%clk 0:40:37]} 31. Rxc6 {[%clk 1:13:05]}  Rxc6 {[%clk 0:40:58]} 32. Bxc6 {[%clk 1:12:43]}  Rxd4 {[%clk 0:41:04]} 33. Ra2 {[%clk 1:12:38]}  Rd6 {[%clk 0:40:19]} 34. Rc2 {[%clk 1:10:11]}  Qe6 {[%clk 0:37:11]} 35. Qb5 {[%clk 1:06:25]}  Qh3 {[%clk 0:35:27]} 36. Rc1 {[%clk 1:05:30]}  Qe6 {[%clk 0:34:36]} 37. Bg2 {[%clk 1:03:48]}  Kh7 {[%clk 0:33:34]} 38. Rc7 {[%clk 1:03:48]}  Rd7 {[%clk 0:32:52]} 39. Rxd7 {[%clk 1:02:26]}  Qxd7 {[%clk 0:33:03]} 40. Qxd7 {[%clk 1:01:27]}  Nxd7 {[%clk 0:33:25]} 41. Kf1 {[%clk 1:01:49]}  Kg6 {[%clk 0:33:16]} 42. Ke2 {[%clk 1:01:59]}  Kf6 {[%clk 0:32:50]} 43. Kd3 {[%clk 1:02:15]}  Ke5 {[%clk 0:32:37]} 44. Kc4 {[%clk 1:02:22]}  Kd6 {[%clk 0:32:28]} 45. Kb5 {[%clk 1:02:00]}  Kc7 {[%clk 0:31:30]} 46. b4 {[%clk 1:01:34]}  Nb6 {[%clk 0:31:08]} 47. Ka6 {[%clk 1:01:35]}  Kb8 {[%clk 0:31:21]} 48. f4 {[%clk 1:01:48]}  Nc4 {[%clk 0:31:01]} 49. Kb5 {[%clk 1:01:22]}  Ne3 {[%clk 0:29:52]} 50. Bh3 {[%clk 1:01:40]}  f5 {[%clk 0:28:38]} 51. Kc5 {[%clk 1:02:01]}  Kc7 {[%clk 0:24:18]} 52. Kd4 {[%clk 1:01:54]}  Ng4 {[%clk 0:24:28]} 53. Bxg4 {[%clk 1:01:09]}  fxg4 {[%clk 0:24:09]} 54. Kc5 {[%clk 1:01:20]}  Kb7 {[%clk 0:24:15]} 55. Kb5 {[%clk 1:01:04]}  a6+ {[%clk 0:24:07]} 56. Ka5 {[%clk 1:00:01]}  Ka7 {[%clk 0:24:06]} 57. b5 {[%clk 1:00:27]}  axb5 {[%clk 0:23:58]} 58. Kxb5 {[%clk 1:00:41]}  Kb7 {[%clk 0:24:01]} 59. Kc5 {[%clk 1:01:03]}  Kc7 {[%clk 0:23:59]} 60. Kd5 {[%clk 1:01:26]}  Kd7 {[%clk 0:24:19]} 61. Ke5 {[%clk 1:01:50]}  Ke7 {[%clk 0:23:43]} 62. Kf5 {[%clk 1:02:08]}  Kf7 {[%clk 0:24:08]} 63. Kxg4 {[%clk 1:02:14]}  Ke7 {[%clk 0:24:08]} 1-0


[Site "http://www.chessbomb.com"]